Workbook

Sheet 공사원가계산서 (hidden)
B1: 국가정보자원관리원 대구센터 신축공사
A3: 공사원가계산서(관급)
S4: [단위:원]
B5: 항 목 별 | J5: 당 초 [관급심의] (A) | M5: 변 경 [금회요청] (B) | P5: 증 감 (B-A) | S5: 비 고
D7: 1. | F7: 재료비
E8: (1) | G8: 직접재료비 | K8: =집계표!F13 -> 3177242100 | N8: =집계표!O13 -> 3205346060 | Q8: =N8-K8 -> 28103960
E9: (2) | G9: 간접재료비 | Q9: =N9-K9 -> 0
G10: 소계 | H10: (a) | K10: =SUM(K8:K9) -> 3177242100 | N10: =SUM(N8:N9) -> 3205346060 | Q10: 28103960
D11: 2. | F11: 노무비 | Q11: 0
E12: (1) | G12: 직접노무비 | K12: =집계표!H13 -> 269220267 | N12: =집계표!Q13 -> 303221855 | Q12: 34001588
E13: (2) | G13: 간접노무비 | Q13: 0
G14: 소계 | H14: (b) | K14: =SUM(K12:K13) -> 269220267 | N14: =SUM(N12:N13) -> 303221855 | Q14: 34001588
D15: 3. | F15: 경비 | Q15: 0
E16: (1) | G16: 산출경비 | Q16: 0
E17: (2) | G17: 산재보험료 | K17: =TRUNC(K$14*3.75%,) -> 10095760 | N17: =TRUNC(N$14*3.73%,) -> 11310175 | Q17: 1214415
E18: (3) | G18: 고용보험료 | K18: =TRUNC(K$14*0.87%,) -> 2342216 | N18: =TRUNC(N$14*0.87%,) -> 2638030 | Q18: 295814
E19: (4) | G19: 건강보험료 | Q19: 0
E20: (5) | G20: 연금보험료 | Q20: 0
E21: (6) | G21: 노인장기요양보험료 | Q21: 0
E22: (7) | G22: 퇴직공제부금비 | Q22: 0
E23: (8) | G23: 산업안전보건관리비 | Q23: 0
E24: (9) | G24: 기타경비 | Q24: 0
G25: 소계 | H25: (c) | K25: =SUM(K16:K24) -> 12437976 | N25: =SUM(N16:N24) -> 13948205 | Q25: 1510229
D26: 4. | F26: 합계 | K26: =K10+K14+K25 -> 3458900343 | N26: =N10+N14+N25 -> 3522516120 | Q26: 63615777
D27: 5. | F27: 일반관리비 | Q27: 0
D28: 6. | F28: 이윤 | Q28: 0
D29: 7. | F29: 부가가치세 | K29: =TRUNC(K26*10%,) -> 345890034 | N29: =TRUNC(N26*10%,) -> 352251612 | Q29: 6361578
D30: 8. | F30: 단수조정 | K30: -377 | N30: -732 | Q30: -355
C31: 총 계 | K31: =SUM(K26:K30) -> 3804790000 | N31: =SUM(N26:N30) -> 3874767000 | Q31: 69977000
G35: 조달수수료 | K35: =TRUNC(K31*0.54%) -> 20545866 | N35: =TRUNC(N31*0.54%) -> 20923741 | Q35: =N35-K35 -> 377875

Sheet 집계표 (hidden)
A1: 집 계 표
A3: 품 명 | B3: 규 격 | C3: 단위 | D3: 당 초 [관급심의] (A) | M3: 변 경 [금회요청] (B) | V3: 증 감 (B-A) | AE3: 비 고
D4: 수량 | E4: 재료비 | G4: 노무비 | I4: 경비 | K4: 합계 | M4: 수량 | N4: 재료비 | P4: 노무비 | R4: 경비 | T4: 합계 | V4: 수량 | W4: 재료비 | Y4: 노무비 | AA4: 경비 | AC4: 합계
E5: 단가 | F5: 금액 | G5: 단가 | H5: 금액 | I5: 단가 | J5: 금액 | K5: 단가 | L5: 금액 | N5: 단가 | O5: 금액 | P5: 단가 | Q5: 금액 | R5: 단가 | S5: 금액 | T5: 단가 | U5: 금액 | W5: 단가 | X5: 금액 | Y5: 단가 | Z5: 금액 | AA5: 단가 | AB5: 금액 | AC5: 단가 | AD5: 금액
A7: 통신공사
A8: 관급공사
A9: 관급자설치관급공사
A10: 네트워크 및 교환기 | F10: =내역서!F192 -> 3177242100 | H10: =내역서!H192 -> 269220267 | J10: =내역서!J192 -> 0 | L10: =내역서!L192 -> 3446462367 | O10: =내역서!O192 -> 3205346060 | Q10: =내역서!Q192 -> 303221855 | S10: =내역서!S192 -> 0 | U10: =내역서!U192 -> 3508567915 | X10: =내역서!X192 -> 28103960 | Z10: =내역서!Z192 -> 34001588 | AB10: =내역서!AB192 -> 0 | AD10: =내역서!AD192 -> 62105548
A13: 소계 | F13: =SUM(F10:F11) -> 3177242100 | H13: =SUM(H10:H11) -> 269220267 | I13: =SUM(I10:I11) -> 0 | J13: =SUM(J10:J11) -> 0 | K13: =SUM(K10:K11) -> 0 | L13: =SUM(L10:L11) -> 3446462367 | O13: =SUM(O10:O11) -> 3205346060 | Q13: =SUM(Q10:Q11) -> 303221855 | S13: =SUM(S10:S11) -> 0 | U13: =SUM(U10:U11) -> 3508567915 | X13: =SUM(X10:X11) -> 28103960 | Z13: =SUM(Z10:Z11) -> 34001588 | AB13: =SUM(AB10:AB11) -> 0 | AD13: =SUM(AD10:AD11) -> 62105548
A15: 도급공사
A18: 소계 | F18: =SUM(F16:F16) -> 0 | H18: =SUM(H16:H16) -> 0 | J18: =SUM(J16:J16) -> 0 | L18: =SUM(L16:L16) -> 0 | O18: =SUM(O16:O16) -> 0 | Q18: =SUM(Q16:Q16) -> 0 | S18: =SUM(S16:S16) -> 0 | U18: =SUM(U16:U16) -> 0 | X18: =SUM(X16:X16) -> 0 | Z18: =SUM(Z16:Z16) -> 0 | AB18: =SUM(AB16:AB16) -> 0 | AD18: =SUM(AD16:AD16) -> 0
A19: 계 | F19: =F13+F18 -> 3177242100 | H19: =H13+H18 -> 269220267 | J19: =J13+J18 -> 0 | L19: =L13+L18 -> 3446462367 | O19: =O13+O18 -> 3205346060 | Q19: =Q13+Q18 -> 303221855 | S19: =S13+S18 -> 0 | U19: =U13+U18 -> 3508567915 | X19: =X13+X18 -> 28103960 | Z19: =Z13+Z18 -> 34001588 | AB19: =AB13+AB18 -> 0 | AD19: =AD13+AD18 -> 62105548

Sheet 내역서 (hidden)
A1: 내 역 서
A3: 품 명 | B3: 규 격 | C3: 단위 | D3: 당 초 [관급심의] (A) | M3: 변 경 [금회요청] (B) | V3: 증 감 (B-A) | AE3: 비 고
D4: 수량 | E4: 재료비 | G4: 노무비 | I4: 경비 | K4: 합계 | M4: 수량 | N4: 재료비 | P4: 노무비 | R4: 경비 | T4: 합계 | V4: 수량 | W4: 재료비 | Y4: 노무비 | AA4: 경비 | AC4: 합계
E5: 단가 | F5: 금액 | G5: 단가 | H5: 금액 | I5: 단가 | J5: 금액 | K5: 단가 | L5: 금액 | N5: 단가 | O5: 금액 | P5: 단가 | Q5: 금액 | R5: 단가 | S5: 금액 | T5: 단가 | U5: 금액 | W5: 단가 | X5: 금액 | Y5: 단가 | Z5: 금액 | AA5: 단가 | AB5: 금액 | AC5: 단가 | AD5: 금액
A7: 관급공사
A8: 네트워크 및 교환기
A9: BACKBONE SWITCH(인터넷망) | B9: CHASSIS TYPE | D9: 2 | E9: 129600000 | F9: =D9*E9 -> 259200000 | H9: =D9*G9 -> 0 | J9: =D9*I9 -> 0 | K9: =E9+G9+I9 -> 129600000 | L9: =F9+H9+J9 -> 259200000 | M9: 2 | N9: 129600000 | O9: =M9*N9 -> 259200000 | Q9: =M9*P9 -> 0 | S9: =M9*R9 -> 0 | T9: =N9+P9+R9 -> 129600000 | U9: =O9+Q9+S9 -> 259200000 | X9: =O9-F9 -> 0 | Z9: =Q9-H9 -> 0 | AB9: =S9-J9 -> 0 | AD9: =X9+Z9+AB9 -> 0
B10: CHASSIS WITH PASSIVE MID | D10: 1 | F10: =D10*E10 -> 0 | H10: =D10*G10 -> 0 | J10: =D10*I10 -> 0 | K10: =E10+G10+I10 -> 0 | L10: 0 | M10: 1 | O10: =M10*N10 -> 0 | Q10: =M10*P10 -> 0 | S10: =M10*R10 -> 0 | T10: =N10+P10+R10 -> 0 | U10: 0 | X10: =O10-F10 -> 0 | Z10: =Q10-H10 -> 0 | AB10: =S10-J10 -> 0 | AD10: =X10+Z10+AB10 -> 0
B11: 32-PORT 10GBE SFP+LIN | D11: 3 | F11: 0 | H11: 0 | J11: 0 | K11: 0 | L11: 0 | M11: 3 | O11: 0 | Q11: 0 | S11: 0 | T11: 0 | U11: 0 | X11: 0 | Z11: 0 | AB11: 0 | AD11: 0
B12: 40-PORT 10/100/1000 BASE | D12: 1 | F12: 0 | H12: 0 | J12: 0 | K12: 0 | L12: 0 | M12: 1 | O12: 0 | Q12: 0 | S12: 0 | T12: 0 | U12: 0 | X12: 0 | Z12: 0 | AB12: 0 | AD12: 0
A13: BACKBONE SWITCH(전화망) | B13: CHASSIS TYPE | D13: 2 | E13: 108000000 | F13: 216000000 | H13: 0 | J13: 0 | K13: 108000000 | L13: 216000000 | M13: 2 | N13: 109113480 | O13: 218226960 | Q13: 0 | S13: 0 | T13: 109113480 | U13: 218226960 | X13: 2226960 | Z13: 0 | AB13: 0 | AD13: =X13+Z13+AB13 -> 2226960
B14: CHASSIS WITH PASSIVE MID | D14: 1 | F14: 0 | H14: 0 | J14: 0 | K14: 0 | L14: 0 | M14: 1 | O14: 0 | Q14: 0 | S14: 0 | T14: 0 | U14: 0 | X14: 0 | Z14: 0 | AB14: 0 | AD14: 0
B15: 32-PORT 10GBE SFP+LIN | D15: 2 | F15: 0 | H15: 0 | J15: 0 | K15: 0 | L15: 0 | M15: 2 | O15: 0 | Q15: 0 | S15: 0 | T15: 0 | U15: 0 | X15: 0 | Z15: 0 | AB15: 0 | AD15: 0
B16: 40-PORT 10/100/1000 BASE | D16: 1 | F16: 0 | H16: 0 | J16: 0 | K16: 0 | L16: 0 | M16: 1 | O16: 0 | Q16: 0 | S16: 0 | T16: 0 | U16: 0 | X16: 0 | Z16: 0 | AB16: 0 | AD16: 0
A17: BACKBONE SWITCH(업무망) | B17: CHASSIS TYPE | D17: 2 | E17: 109113480 | F17: 218226960 | H17: 0 | J17: 0 | K17: 109113480 | L17: 218226960 | M17: 2 | N17: 109113480 | O17: 218226960 | Q17: 0 | S17: 0 | T17: 109113480 | U17: 218226960 | X17: 0 | Z17: 0 | AB17: 0 | AD17: =X17+Z17+AB17 -> 0
B18: CHASSIS WITH PASSIVE MID | D18: 1 | F18: 0 | H18: 0 | J18: 0 | K18: 0 | L18: 0 | M18: 1 | O18: 0 | Q18: 0 | S18: 0 | T18: 0 | U18: 0 | X18: 0 | Z18: 0 | AB18: 0 | AD18: 0
B19: 32-PORT 10GBE SFP+LIN | D19: 2 | F19: 0 | H19: 0 | J19: 0 | K19: 0 | L19: 0 | M19: 2 | O19: 0 | Q19: 0 | S19: 0 | T19: 0 | U19: 0 | X19: 0 | Z19: 0 | AB19: 0 | AD19: 0
B20: 40-PORT 10/100/1000 BASE | D20: 1 | F20: 0 | H20: 0 | J20: 0 | K20: 0 | L20: 0 | M20: 1 | O20: 0 | Q20: 0 | S20: 0 | T20: 0 | U20: 0 | X20: 0 | Z20: 0 | AB20: 0 | AD20: 0
A21: BACKBONE SWITCH(사업관리망) | B21: CHASSIS TYPE | D21: 2 | E21: 88210620 | F21: 176421240 | H21: 0 | J21: 0 | K21: 88210620 | L21: 176421240 | M21: 2 | N21: 88210620 | O21: 176421240 | Q21: 0 | S21: 0 | T21: 88210620 | U21: 176421240 | X21: 0 | Z21: 0 | AB21: 0 | AD21: =X21+Z21+AB21 -> 0
B22: CHASSIS WITH PASSIVE MID | D22: 1 | F22: 0 | H22: 0 | J22: 0 | K22: 0 | L22: 0 | M22: 1 | O22: 0 | Q22: 0 | S22: 0 | T22: 0 | U22: 0 | X22: 0 | Z22: 0 | AB22: 0 | AD22: 0
B23: 32-PORT 10GBE SFP+LIN | D23: 2 | F23: 0 | H23: 0 | J23: 0 | K23: 0 | L23: 0 | M23: 1 | O23: 0 | Q23: 0 | S23: 0 | T23: 0 | U23: 0 | X23: 0 | Z23: 0 | AB23: 0 | AD23: 0
B24: 40-PORT 10/100/1000 BASE | D24: 1 | F24: 0 | H24: 0 | J24: 0 | K24: 0 | L24: 0 | M24: 1 | O24: 0 | Q24: 0 | S24: 0 | T24: 0 | U24: 0 | X24: 0 | Z24: 0 | AB24: 0 | AD24: 0
A25: GIGABIT ETHERNET SWITCH(상용망 | B25: 10/100/1000T 24PORT+4SFP+ | D25: 1 | E25: 2654500 | F25: 2654500 | H25: 0 | J25: 0 | K25: 2654500 | L25: 2654500 | M25: 1 | N25: 2654500 | O25: 2654500 | Q25: 0 | S25: 0 | T25: 2654500 | U25: 2654500 | X25: 0 | Z25: 0 | AB25: 0 | AD25: 0
A26: GIGABIT PoE SWITCH | B26: 10/100/1000T 24PORT+4SFP, POE, GBIC포함 | D26: 2 | E26: 3508000 | F26: 7016000 | H26: 0 | J26: 0 | K26: 3508000 | L26: 7016000 | M26: 2 | N26: 3508000 | O26: 7016000 | Q26: 0 | S26: 0 | T26: 3508000 | U26: 7016000 | X26: 0 | Z26: 0 | AB26: 0 | AD26: 0
A27: OPTICAL MODULE | B27: 10G SFP+, LR TYPE | D27: 524 | E27: 840000 | F27: 440160000 | H27: 0 | J27: 0 | K27: 840000 | L27: 440160000 | M27: 524 | N27: 840000 | O27: 440160000 | Q27: 0 | S27: 0 | T27: 840000 | U27: 440160000 | X27: 0 | Z27: 0 | AB27: 0 | AD27: 0
A28: OPTICAL PATCH CORD | B28: 3M, 1G | D28: 460 | E28: 21000 | F28: 9660000 | H28: 0 | J28: 0 | K28: 21000 | L28: 9660000 | M28: 460 | N28: 21000 | O28: 9660000 | Q28: 0 | S28: 0 | T28: 21000 | U28: 9660000 | X28: 0 | Z28: 0 | AB28: 0 | AD28: 0
A29: NMS | B29: NMS 및 통합배선 선번관리 | D29: 3 | E29: 35100000 | F29: 105300000 | H29: 0 | J29: 0 | K29: 35100000 | L29: 105300000 | M29: 3 | N29: 35100000 | O29: 105300000 | Q29: 0 | S29: 0 | T29: 35100000 | U29: 105300000 | X29: 0 | Z29: 0 | AB29: 0 | AD29: 0
F30: 0 | H30: 0 | J30: 0 | K30: 0 | L30: 0 | O30: 0 | Q30: 0 | S30: 0 | T30: 0 | U30: 0 | X30: 0 | Z30: 0 | AB30: 0 | AD30: 0
A31: NAC SERVER | B31: 150 LICENCE | D31: 3 | E31: 38700000 | F31: 116100000 | H31: 0 | J31: 0 | K31: 38700000 | L31: 116100000 | M31: 3 | N31: 38700000 | O31: 116100000 | Q31: 0 | S31: 0 | T31: 38700000 | U31: 116100000 | X31: 0 | Z31: 0 | AB31: 0 | AD31: 0
A32: 메체제어 SERVER | B32: 150 LICENCE | D32: 3 | E32: 67500000 | F32: 202500000 | H32: 0 | J32: 0 | K32: 67500000 | L32: 202500000 | M32: 3 | N32: 67500000 | O32: 202500000 | Q32: 0 | S32: 0 | T32: 67500000 | U32: 202500000 | X32: 0 | Z32: 0 | AB32: 0 | AD32: 0
A33: WIPS SERVER | B33: SERVER | D33: 1 | E33: 51354000 | F33: 51354000 | H33: 0 | J33: 0 | K33: 51354000 | L33: 51354000 | M33: 1 | N33: 51354000 | O33: 51354000 | Q33: 0 | S33: 0 | T33: 51354000 | U33: 51354000 | X33: 0 | Z33: 0 | AB33: 0 | AD33: 0
A34: WIPS AP-옥내형 | B34: 무선침입차단 AP | D34: 52 | E34: 1498500 | F34: 77922000 | H34: 0 | J34: 0 | K34: 1498500 | L34: 77922000 | M34: 43 | N34: 1498500 | O34: 64435500 | Q34: 0 | S34: 0 | T34: 1498500 | U34: 64435500 | X34: -13486500 | Z34: 0 | AB34: 0 | AD34: -13486500
A35: WIPS AP-옥외형 | B35: 무선침입차단 AP | D35: 8 | E35: 2818800 | F35: 22550400 | H35: 0 | J35: 0 | K35: 2818800 | L35: 22550400 | M35: 8 | N35: 2818800 | O35: 22550400 | Q35: 0 | S35: 0 | T35: 2818800 | U35: 22550400 | X35: 0 | Z35: 0 | AB35: 0 | AD35: 0
A36: UTM | B36: F/W IPS | D36: 2 | E36: 50400000 | F36: 100800000 | H36: 0 | J36: 0 | K36: 50400000 | L36: 100800000 | M36: 2 | N36: 50400000 | O36: 100800000 | Q36: 0 | S36: 0 | T36: 50400000 | U36: 100800000 | X36: 0 | Z36: 0 | AB36: 0 | AD36: 0
A37: NMS | B37: NMS 및 통합배선 선번관리 | D37: 1 | E37: 35100000 | F37: 35100000 | H37: 0 | J37: 0 | K37: 35100000 | L37: 35100000 | M37: 1 | N37: 35100000 | O37: 35100000 | Q37: 0 | S37: 0 | T37: 35100000 | U37: 35100000 | X37: 0 | Z37: 0 | AB37: 0 | AD37: 0
A38: NAC SERVER | B38: 50 LICENCE | D38: 1 | E38: 35100000 | F38: 35100000 | H38: 0 | J38: 0 | K38: 35100000 | L38: 35100000 | M38: 1 | N38: 35100000 | O38: 35100000 | Q38: 0 | S38: 0 | T38: 35100000 | U38: 35100000 | X38: 0 | Z38: 0 | AB38: 0 | AD38: 0
A39: 매체제어 SERVER | B39: 50 LICENCE | D39: 1 | E39: 58500000 | F39: 58500000 | H39: 0 | J39: 0 | K39: 58500000 | L39: 58500000 | M39: 1 | N39: 58500000 | O39: 58500000 | Q39: 0 | S39: 0 | T39: 58500000 | U39: 58500000 | X39: 0 | Z39: 0 | AB39: 0 | AD39: 0
A40: GIGABIT ETHERNET SWITCH | B40: 10/100/1000T 24PORT+4SFP+ | D40: 4 | E40: 2654500 | F40: 10618000 | H40: 0 | J40: 0 | K40: 2654500 | L40: 10618000 | M40: 4 | N40: 2654500 | O40: 10618000 | Q40: 0 | S40: 0 | T40: 2654500 | U40: 10618000 | X40: 0 | Z40: 0 | AB40: 0 | AD40: 0
A41: OPTICAL MODULE | B41: 10G SFP+, LR TYPE | D41: 8 | E41: 840000 | F41: 6720000 | H41: 0 | J41: 0 | K41: 840000 | L41: 6720000 | M41: 8 | N41: 840000 | O41: 6720000 | Q41: 0 | S41: 0 | T41: 840000 | U41: 6720000 | X41: 0 | Z41: 0 | AB41: 0 | AD41: 0
A42: OPTICAL PATCH CORD | B42: SM, 3m(LC TYPE) | D42: 6 | E42: 21000 | F42: 126000 | H42: 0 | J42: 0 | K42: 21000 | L42: 126000 | M42: 8 | N42: 21000 | O42: 168000 | Q42: 0 | S42: 0 | T42: 21000 | U42: 168000 | X42: 42000 | Z42: 0 | AB42: 0 | AD42: 42000
A43: GIGABIT ETHERNET SWITCH | B43: 10/100/1000T 24PORT+4SFP+ | D43: 2 | E43: 2654500 | F43: 5309000 | H43: 0 | J43: 0 | K43: 2654500 | L43: 5309000 | M43: 2 | N43: 2654500 | O43: 5309000 | Q43: 0 | S43: 0 | T43: 2654500 | U43: 5309000 | X43: 0 | Z43: 0 | AB43: 0 | AD43: 0
A44: GIGABIT POE SWITCH | B44: 10/100/1000T 24PORT+4SFP, POE, GBIC포함 | D44: 2 | E44: 3508000 | F44: 7016000 | H44: 0 | J44: 0 | K44: 3508000 | L44: 7016000 | M44: 2 | N44: 3508000 | O44: 7016000 | Q44: 0 | S44: 0 | T44: 3508000 | U44: 7016000 | X44: 0 | Z44: 0 | AB44: 0 | AD44: 0
A45: OPTICAL MODULE | B45: 10G SFP+, LR TYPE | D45: 8 | E45: 840000 | F45: 6720000 | H45: 0 | J45: 0 | K45: 840000 | L45: 6720000 | M45: 8 | N45: 840000 | O45: 6720000 | Q45: 0 | S45: 0 | T45: 840000 | U45: 6720000 | X45: 0 | Z45: 0 | AB45: 0 | AD45: 0
A46: OPTICAL PATCH CORD | B46: 3M, 1G | D46: 8 | E46: 21000 | F46: 168000 | H46: 0 | J46: 0 | K46: 21000 | L46: 168000 | M46: 8 | N46: 21000 | O46: 168000 | Q46: 0 | S46: 0 | T46: 21000 | U46: 168000 | X46: 0 | Z46: 0 | AB46: 0 | AD46: 0
A47: PATCH CORD | B47: 3M, CAT.6 | D47: 96 | E47: 9000 | F47: 864000 | H47: 0 | J47: 0 | K47: 9000 | L47: 864000 | M47: 96 | N47: 9000 | O47: 864000 | Q47: 0 | S47: 0 | T47: 9000 | U47: 864000 | X47: 0 | Z47: 0 | AB47: 0 | AD47: 0
A48: GIGABIT ETHERNET SWITCH | B48: 10/100/1000T 24PORT+4SFP+ | D48: 2 | E48: 2654500 | F48: 5309000 | H48: 0 | J48: 0 | K48: 2654500 | L48: 5309000 | M48: 2 | N48: 2654500 | O48: 5309000 | Q48: 0 | S48: 0 | T48: 2654500 | U48: 5309000 | X48: 0 | Z48: 0 | AB48: 0 | AD48: 0
A49: GIGABIT POE SWITCH | B49: 10/100/1000T 24PORT+4SFP, POE, GBIC포함 | D49: 2 | E49: 3508000 | F49: 7016000 | H49: 0 | J49: 0 | K49: 3508000 | L49: 7016000 | M49: 2 | N49: 3508000 | O49: 7016000 | Q49: 0 | S49: 0 | T49: 3508000 | U49: 7016000 | X49: 0 | Z49: 0 | AB49: 0 | AD49: 0
A50: OPTICAL MODULE | B50: 10G SFP+, LR TYPE | D50: 8 | E50: 840000 | F50: 6720000 | H50: 0 | J50: 0 | K50: 840000 | L50: 6720000 | M50: 8 | N50: 840000 | O50: 6720000 | Q50: 0 | S50: 0 | T50: 840000 | U50: 6720000 | X50: 0 | Z50: 0 | AB50: 0 | AD50: 0
A51: OPTICAL PATCH CORD | B51: 3M, 1G | D51: 8 | E51: 21000 | F51: 168000 | H51: 0 | J51: 0 | K51: 21000 | L51: 168000 | M51: 8 | N51: 21000 | O51: 168000 | Q51: 0 | S51: 0 | T51: 21000 | U51: 168000 | X51: 0 | Z51: 0 | AB51: 0 | AD51: 0
A52: PATCH CORD | B52: 3M, CAT.6 | D52: 96 | E52: 9000 | F52: 864000 | H52: 0 | J52: 0 | K52: 9000 | L52: 864000 | M52: 96 | N52: 9000 | O52: 864000 | Q52: 0 | S52: 0 | T52: 9000 | U52: 864000 | X52: 0 | Z52: 0 | AB52: 0 | AD52: 0
A53: GIGABIT ETHERNET SWITCH | B53: 10/100/1000T 24PORT+4SFP+ | D53: 2 | E53: 2654500 | F53: 5309000 | H53: 0 | J53: 0 | K53: 2654500 | L53: 5309000 | M53: 2 | N53: 2654500 | O53: 5309000 | Q53: 0 | S53: 0 | T53: 2654500 | U53: 5309000 | X53: 0 | Z53: 0 | AB53: 0 | AD53: 0
A54: GIGABIT POE SWITCH | B54: 10/100/1000T 24PORT+4SFP, POE, GBIC포함 | D54: 2 | E54: 3508000 | F54: 7016000 | H54: 0 | J54: 0 | K54: 3508000 | L54: 7016000 | M54: 2 | N54: 3508000 | O54: 7016000 | Q54: 0 | S54: 0 | T54: 3508000 | U54: 7016000 | X54: 0 | Z54: 0 | AB54: 0 | AD54: 0
A55: OPTICAL MODULE | B55: 10G SFP+, LR TYPE | D55: 8 | E55: 840000 | F55: 6720000 | H55: 0 | J55: 0 | K55: 840000 | L55: 6720000 | M55: 8 | N55: 840000 | O55: 6720000 | Q55: 0 | S55: 0 | T55: 840000 | U55: 6720000 | X55: 0 | Z55: 0 | AB55: 0 | AD55: 0
A56: OPTICAL PATCH CORD | B56: 3M, 1G | D56: 8 | E56: 21000 | F56: 168000 | H56: 0 | J56: 0 | K56: 21000 | L56: 168000 | M56: 8 | N56: 21000 | O56: 168000 | Q56: 0 | S56: 0 | T56: 21000 | U56: 168000 | X56: 0 | Z56: 0 | AB56: 0 | AD56: 0
A57: PATCH CORD | B57: 3M, CAT.6 | D57: 96 | E57: 9000 | F57: 864000 | H57: 0 | J57: 0 | K57: 9000 | L57: 864000 | M57: 96 | N57: 9000 | O57: 864000 | Q57: 0 | S57: 0 | T57: 9000 | U57: 864000 | X57: 0 | Z57: 0 | AB57: 0 | AD57: 0
A58: GIGABIT ETHERNET SWITCH | B58: 10/100/1000T 24PORT+4SFP+ | D58: 2 | E58: 2654500 | F58: 5309000 | H58: 0 | J58: 0 | K58: 2654500 | L58: 5309000 | M58: 2 | N58: 2654500 | O58: 5309000 | Q58: 0 | S58: 0 | T58: 2654500 | U58: 5309000 | X58: 0 | Z58: 0 | AB58: 0 | AD58: 0
A59: GIGABIT POE SWITCH | B59: 10/100/1000T 24PORT+4SFP, POE, GBIC포함 | D59: 2 | E59: 3508000 | F59: 7016000 | H59: 0 | J59: 0 | K59: 3508000 | L59: 7016000 | M59: 2 | N59: 3508000 | O59: 7016000 | Q59: 0 | S59: 0 | T59: 3508000 | U59: 7016000 | X59: 0 | Z59: 0 | AB59: 0 | AD59: 0
A60: OPTICAL MODULE | B60: 10G SFP+, LR TYPE | D60: 8 | E60: 840000 | F60: 6720000 | H60: 0 | J60: 0 | K60: 840000 | L60: 6720000 | M60: 8 | N60: 840000 | O60: 6720000 | Q60: 0 | S60: 0 | T60: 840000 | U60: 6720000 | X60: 0 | Z60: 0 | AB60: 0 | AD60: 0
A61: OPTICAL PATCH CORD | B61: 3M, 1G | D61: 8 | E61: 21000 | F61: 168000 | H61: 0 | J61: 0 | K61: 21000 | L61: 168000 | M61: 8 | N61: 21000 | O61: 168000 | Q61: 0 | S61: 0 | T61: 21000 | U61: 168000 | X61: 0 | Z61: 0 | AB61: 0 | AD61: 0
A62: PATCH CORD | B62: 3M, CAT.6 | D62: 96 | E62: 9000 | F62: 864000 | H62: 0 | J62: 0 | K62: 9000 | L62: 864000 | M62: 96 | N62: 9000 | O62: 864000 | Q62: 0 | S62: 0 | T62: 9000 | U62: 864000 | X62: 0 | Z62: 0 | AB62: 0 | AD62: 0
A63: GIGABIT ETHERNET SWITCH | B63: 10/100/1000T 24PORT+4SFP+ | D63: 1 | E63: 2654500 | F63: 2654500 | H63: 0 | J63: 0 | K63: 2654500 | L63: 2654500 | M63: 1 | N63: 2654500 | O63: 2654500 | Q63: 0 | S63: 0 | T63: 2654500 | U63: 2654500 | X63: 0 | Z63: 0 | AB63: 0 | AD63: 0
A64: GIGABIT POE SWITCH | B64: 10/100/1000T 24PORT+4SFP, POE, GBIC포함 | D64: 2 | E64: 3508000 | F64: 7016000 | H64: 0 | J64: 0 | K64: 3508000 | L64: 7016000 | M64: 2 | N64: 3508000 | O64: 7016000 | Q64: 0 | S64: 0 | T64: 3508000 | U64: 7016000 | X64: 0 | Z64: 0 | AB64: 0 | AD64: 0
A65: OPTICAL MODULE | B65: 10G SFP+, LR TYPE | D65: 6 | E65: 840000 | F65: 5040000 | H65: 0 | J65: 0 | K65: 840000 | L65: 5040000 | M65: 6 | N65: 840000 | O65: 5040000 | Q65: 0 | S65: 0 | T65: 840000 | U65: 5040000 | X65: 0 | Z65: 0 | AB65: 0 | AD65: 0
A66: OPTICAL PATCH CORD | B66: 3M, 1G | D66: 6 | E66: 21000 | F66: 126000 | H66: 0 | J66: 0 | K66: 21000 | L66: 126000 | M66: 6 | N66: 21000 | O66: 126000 | Q66: 0 | S66: 0 | T66: 21000 | U66: 126000 | X66: 0 | Z66: 0 | AB66: 0 | AD66: 0
A67: PATCH CORD | B67: 3M, CAT.6 | D67: 72 | E67: 9000 | F67: 648000 | H67: 0 | J67: 0 | K67: 9000 | L67: 648000 | M67: 72 | N67: 9000 | O67: 648000 | Q67: 0 | S67: 0 | T67: 9000 | U67: 648000 | X67: 0 | Z67: 0 | AB67: 0 | AD67: 0
A68: GIGABIT ETHERNET SWITCH | B68: 10/100/1000T 24PORT+4SFP+ | D68: 2 | E68: 2654500 | F68: 5309000 | H68: 0 | J68: 0 | K68: 2654500 | L68: 5309000 | M68: 2 | N68: 2654500 | O68: 5309000 | Q68: 0 | S68: 0 | T68: 2654500 | U68: 5309000 | X68: 0 | Z68: 0 | AB68: 0 | AD68: 0
A69: GIGABIT POE SWITCH | B69: 10/100/1000T 24PORT+4SFP, POE, GBIC포함 | D69: 2 | E69: 3508000 | F69: 7016000 | H69: 0 | J69: 0 | K69: 3508000 | L69: 7016000 | M69: 2 | N69: 3508000 | O69: 7016000 | Q69: 0 | S69: 0 | T69: 3508000 | U69: 7016000 | X69: 0 | Z69: 0 | AB69: 0 | AD69: 0
A70: OPTICAL MODULE | B70: 10G SFP+, LR TYPE | D70: 8 | E70: 840000 | F70: 6720000 | H70: 0 | J70: 0 | K70: 840000 | L70: 6720000 | M70: 8 | N70: 840000 | O70: 6720000 | Q70: 0 | S70: 0 | T70: 840000 | U70: 6720000 | X70: 0 | Z70: 0 | AB70: 0 | AD70: 0
A71: OPTICAL PATCH CORD | B71: 3M, 1G | D71: 8 | E71: 21000 | F71: 168000 | H71: 0 | J71: 0 | K71: 21000 | L71: 168000 | M71: 8 | N71: 21000 | O71: 168000 | Q71: 0 | S71: 0 | T71: 21000 | U71: 168000 | X71: 0 | Z71: 0 | AB71: 0 | AD71: 0
A72: PATCH CORD | B72: 3M, CAT.6 | D72: 96 | E72: 9000 | F72: 864000 | H72: 0 | J72: 0 | K72: 9000 | L72: 864000 | M72: 96 | N72: 9000 | O72: 864000 | Q72: 0 | S72: 0 | T72: 9000 | U72: 864000 | X72: 0 | Z72: 0 | AB72: 0 | AD72: 0
A73: GIGABIT ETHERNET SWITCH | B73: 10/100/1000T 24PORT+4SFP+ | D73: 9 | E73: 2654500 | F73: 23890500 | H73: 0 | J73: 0 | K73: 2654500 | L73: 23890500 | M73: 7 | N73: 2654500 | O73: 18581500 | Q73: 0 | S73: 0 | T73: 2654500 | U73: 18581500 | X73: -5309000 | Z73: 0 | AB73: 0 | AD73: -5309000
A74: GIGABIT POE SWITCH | B74: 10/100/1000T 24PORT+4SFP, POE, GBIC포함 | D74: 4 | E74: 3508000 | F74: =D74*E74 -> 14032000 | H74: =D74*G74 -> 0 | J74: =D74*I74 -> 0 | K74: =E74+G74+I74 -> 3508000 | L74: 14032000 | M74: 4 | N74: 3508000 | O74: =M74*N74 -> 14032000 | Q74: =M74*P74 -> 0 | S74: =M74*R74 -> 0 | T74: =N74+P74+R74 -> 3508000 | U74: 14032000 | X74: =O74-F74 -> 0 | Z74: =Q74-H74 -> 0 | AB74: =S74-J74 -> 0 | AD74: =X74+Z74+AB74 -> 0
A75: OPTICAL MODULE | B75: 10G SFP+, LR TYPE | D75: 26 | E75: 840000 | F75: 21840000 | H75: 0 | J75: 0 | K75: 840000 | L75: 21840000 | M75: 22 | N75: 840000 | O75: 18480000 | Q75: 0 | S75: 0 | T75: 840000 | U75: 18480000 | X75: -3360000 | Z75: 0 | AB75: 0 | AD75: -3360000
A76: OPTICAL PATCH CORD | B76: 3M, 1G | D76: 26 | E76: 21000 | F76: 546000 | H76: 0 | J76: 0 | K76: 21000 | L76: 546000 | M76: 22 | N76: 21000 | O76: 462000 | Q76: 0 | S76: 0 | T76: 21000 | U76: 462000 | X76: -84000 | Z76: 0 | AB76: 0 | AD76: -84000
A77: PATCH CORD | B77: 3M, CAT.6 | D77: 312 | E77: 9000 | F77: 2808000 | H77: 0 | J77: 0 | K77: 9000 | L77: 2808000 | M77: 264 | N77: 9000 | O77: 2376000 | Q77: 0 | S77: 0 | T77: 9000 | U77: 2376000 | X77: -432000 | Z77: 0 | AB77: 0 | AD77: -432000
A78: GIGABIT ETHERNET SWITCH | B78: 10/100/1000T 24PORT+4SFP+ | D78: 10 | E78: 2654500 | F78: 26545000 | H78: 0 | J78: 0 | K78: 2654500 | L78: 26545000 | M78: 10 | N78: 2654500 | O78: 26545000 | Q78: 0 | S78: 0 | T78: 2654500 | U78: 26545000 | X78: 0 | Z78: 0 | AB78: 0 | AD78: 0
A79: GIGABIT POE SWITCH | B79: 10/100/1000T 24PORT+4SFP, POE, GBIC포함 | D79: 5 | E79: 3508000 | F79: 17540000 | H79: 0 | J79: 0 | K79: 3508000 | L79: 17540000 | M79: 5 | N79: 3508000 | O79: 17540000 | Q79: 0 | S79: 0 | T79: 3508000 | U79: 17540000 | X79: 0 | Z79: 0 | AB79: 0 | AD79: 0
A80: OPTICAL MODULE | B80: 10G SFP+, LR TYPE | D80: 30 | E80: 840000 | F80: 25200000 | H80: 0 | J80: 0 | K80: 840000 | L80: 25200000 | M80: 30 | N80: 840000 | O80: 25200000 | Q80: 0 | S80: 0 | T80: 840000 | U80: 25200000 | X80: 0 | Z80: 0 | AB80: 0 | AD80: 0
A81: OPTICAL PATCH CORD | B81: 3M, 1G | D81: 30 | E81: 21000 | F81: 630000 | H81: 0 | J81: 0 | K81: 21000 | L81: 630000 | M81: 30 | N81: 21000 | O81: 630000 | Q81: 0 | S81: 0 | T81: 21000 | U81: 630000 | X81: 0 | Z81: 0 | AB81: 0 | AD81: 0
A82: PATCH CORD | B82: 3M, CAT.6 | D82: 360 | E82: 9000 | F82: 3240000 | H82: 0 | J82: 0 | K82: 9000 | L82: 3240000 | M82: 360 | N82: 9000 | O82: 3240000 | Q82: 0 | S82: 0 | T82: 9000 | U82: 3240000 | X82: 0 | Z82: 0 | AB82: 0 | AD82: 0
A83: GIGABIT ETHERNET SWITCH | B83: 10/100/1000T 24PORT+4SFP+ | D83: 1 | E83: 2654500 | F83: 2654500 | H83: 0 | J83: 0 | K83: 2654500 | L83: 2654500 | M83: 1 | N83: 2654500 | O83: 2654500 | Q83: 0 | S83: 0 | T83: 2654500 | U83: 2654500 | X83: 0 | Z83: 0 | AB83: 0 | AD83: 0
A84: GIGABIT POE SWITCH | B84: 10/100/1000T 24PORT+4SFP, POE, GBIC포함 | D84: 2 | E84: 3508000 | F84: 7016000 | H84: 0 | J84: 0 | K84: 3508000 | L84: 7016000 | M84: 2 | N84: 3508000 | O84: 7016000 | Q84: 0 | S84: 0 | T84: 3508000 | U84: 7016000 | X84: 0 | Z84: 0 | AB84: 0 | AD84: 0
A85: OPTICAL MODULE | B85: 10G SFP+, LR TYPE | D85: 6 | E85: 840000 | F85: 5040000 | H85: 0 | J85: 0 | K85: 840000 | L85: 5040000 | M85: 6 | N85: 840000 | O85: 5040000 | Q85: 0 | S85: 0 | T85: 840000 | U85: 5040000 | X85: 0 | Z85: 0 | AB85: 0 | AD85: 0
A86: OPTICAL PATCH CORD | B86: 3M, 1G | D86: 6 | E86: 21000 | F86: 126000 | H86: 0 | J86: 0 | K86: 21000 | L86: 126000 | M86: 6 | N86: 21000 | O86: 126000 | Q86: 0 | S86: 0 | T86: 21000 | U86: 126000 | X86: 0 | Z86: 0 | AB86: 0 | AD86: 0
A87: PATCH CORD | B87: 3M, CAT.6 | D87: 72 | E87: 9000 | F87: 648000 | H87: 0 | J87: 0 | K87: 9000 | L87: 648000 | M87: 72 | N87: 9000 | O87: 648000 | Q87: 0 | S87: 0 | T87: 9000 | U87: 648000 | X87: 0 | Z87: 0 | AB87: 0 | AD87: 0
A88: GIGABIT ETHERNET SWITCH | B88: 10/100/1000T 24PORT+4SFP+ | D88: 2 | E88: 2654500 | F88: 5309000 | H88: 0 | J88: 0 | K88: 2654500 | L88: 5309000 | M88: 2 | N88: 2654500 | O88: 5309000 | Q88: 0 | S88: 0 | T88: 2654500 | U88: 5309000 | X88: 0 | Z88: 0 | AB88: 0 | AD88: 0
A89: GIGABIT POE SWITCH | B89: 10/100/1000T 24PORT+4SFP, POE, GBIC포함 | D89: 2 | E89: 3508000 | F89: 7016000 | H89: 0 | J89: 0 | K89: 3508000 | L89: 7016000 | M89: 2 | N89: 3508000 | O89: 7016000 | Q89: 0 | S89: 0 | T89: 3508000 | U89: 7016000 | X89: 0 | Z89: 0 | AB89: 0 | AD89: 0
A90: OPTICAL MODULE | B90: 10G SFP+, LR TYPE | D90: 8 | E90: 840000 | F90: 6720000 | H90: 0 | J90: 0 | K90: 840000 | L90: 6720000 | M90: 8 | N90: 840000 | O90: 6720000 | Q90: 0 | S90: 0 | T90: 840000 | U90: 6720000 | X90: 0 | Z90: 0 | AB90: 0 | AD90: 0
A91: OPTICAL PATCH CORD | B91: 3M, 1G | D91: 8 | E91: 21000 | F91: 168000 | H91: 0 | J91: 0 | K91: 21000 | L91: 168000 | M91: 8 | N91: 21000 | O91: 168000 | Q91: 0 | S91: 0 | T91: 21000 | U91: 168000 | X91: 0 | Z91: 0 | AB91: 0 | AD91: 0
A92: PATCH CORD | B92: 3M, CAT.6 | D92: 96 | E92: 9000 | F92: 864000 | H92: 0 | J92: 0 | K92: 9000 | L92: 864000 | M92: 96 | N92: 9000 | O92: 864000 | Q92: 0 | S92: 0 | T92: 9000 | U92: 864000 | X92: 0 | Z92: 0 | AB92: 0 | AD92: 0
A93: GIGABIT ETHERNET SWITCH | B93: 10/100/1000T 24PORT+4SFP+ | D93: 1 | E93: 2654500 | F93: 2654500 | H93: 0 | J93: 0 | K93: 2654500 | L93: 2654500 | M93: 1 | N93: 2654500 | O93: 2654500 | Q93: 0 | S93: 0 | T93: 2654500 | U93: 2654500 | X93: 0 | Z93: 0 | AB93: 0 | AD93: 0
A94: GIGABIT POE SWITCH | B94: 10/100/1000T 24PORT+4SFP, POE, GBIC포함 | D94: 2 | E94: 3508000 | F94: 7016000 | H94: 0 | J94: 0 | K94: 3508000 | L94: 7016000 | M94: 2 | N94: 3508000 | O94: 7016000 | Q94: 0 | S94: 0 | T94: 3508000 | U94: 7016000 | X94: 0 | Z94: 0 | AB94: 0 | AD94: 0
A95: OPTICAL MODULE | B95: 10G SFP+, LR TYPE | D95: 6 | E95: 840000 | F95: 5040000 | H95: 0 | J95: 0 | K95: 840000 | L95: 5040000 | M95: 6 | N95: 840000 | O95: 5040000 | Q95: 0 | S95: 0 | T95: 840000 | U95: 5040000 | X95: 0 | Z95: 0 | AB95: 0 | AD95: 0
A96: OPTICAL PATCH CORD | B96: 3M, 1G | D96: 6 | E96: 21000 | F96: 126000 | H96: 0 | J96: 0 | K96: 21000 | L96: 126000 | M96: 6 | N96: 21000 | O96: 126000 | Q96: 0 | S96: 0 | T96: 21000 | U96: 126000 | X96: 0 | Z96: 0 | AB96: 0 | AD96: 0
A97: PATCH CORD | B97: 3M, CAT.6 | D97: 72 | E97: 9000 | F97: 648000 | H97: 0 | J97: 0 | K97: 9000 | L97: 648000 | M97: 72 | N97: 9000 | O97: 648000 | Q97: 0 | S97: 0 | T97: 9000 | U97: 648000 | X97: 0 | Z97: 0 | AB97: 0 | AD97: 0
A98: GIGABIT ETHERNET SWITCH | B98: 10/100/1000T 24PORT+4SFP+ | D98: 2 | E98: 2654500 | F98: 5309000 | H98: 0 | J98: 0 | K98: 2654500 | L98: 5309000 | M98: 2 | N98: 2654500 | O98: 5309000 | Q98: 0 | S98: 0 | T98: 2654500 | U98: 5309000 | X98: 0 | Z98: 0 | AB98: 0 | AD98: 0
A99: GIGABIT POE SWITCH | B99: 10/100/1000T 24PORT+4SFP, POE, GBIC포함 | D99: 2 | E99: 3508000 | F99: 7016000 | H99: 0 | J99: 0 | K99: 3508000 | L99: 7016000 | M99: 2 | N99: 3508000 | O99: 7016000 | Q99: 0 | S99: 0 | T99: 3508000 | U99: 7016000 | X99: 0 | Z99: 0 | AB99: 0 | AD99: 0
A100: OPTICAL MODULE | B100: 10G SFP+, LR TYPE | D100: 8 | E100: 840000 | F100: 6720000 | H100: 0 | J100: 0 | K100: 840000 | L100: 6720000 | M100: 8 | N100: 840000 | O100: 6720000 | Q100: 0 | S100: 0 | T100: 840000 | U100: 6720000 | X100: 0 | Z100: 0 | AB100: 0 | AD100: 0
A101: OPTICAL PATCH CORD | B101: 3M, 1G | D101: 8 | E101: 21000 | F101: 168000 | H101: 0 | J101: 0 | K101: 21000 | L101: 168000 | M101: 8 | N101: 21000 | O101: 168000 | Q101: 0 | S101: 0 | T101: 21000 | U101: 168000 | X101: 0 | Z101: 0 | AB101: 0 | AD101: 0
A102: PATCH CORD | B102: 3M, CAT.6 | D102: 96 | E102: 9000 | F102: 864000 | H102: 0 | J102: 0 | K102: 9000 | L102: 864000 | M102: 96 | N102: 9000 | O102: 864000 | Q102: 0 | S102: 0 | T102: 9000 | U102: 864000 | X102: 0 | Z102: 0 | AB102: 0 | AD102: 0
A103: GIGABIT ETHERNET SWITCH | B103: 10/100/1000T 24PORT+4SFP+ | D103: 3 | E103: 2654500 | F103: 7963500 | H103: 0 | J103: 0 | K103: 2654500 | L103: 7963500 | M103: 3 | N103: 2654500 | O103: 7963500 | Q103: 0 | S103: 0 | T103: 2654500 | U103: 7963500 | X103: 0 | Z103: 0 | AB103: 0 | AD103: 0
A104: GIGABIT POE SWITCH | B104: 10/100/1000T 24PORT+4SFP, POE, GBIC포함 | D104: 1 | E104: 3508000 | F104: 3508000 | H104: 0 | J104: 0 | K104: 3508000 | L104: 3508000 | M104: 1 | N104: 3508000 | O104: 3508000 | Q104: 0 | S104: 0 | T104: 3508000 | U104: 3508000 | X104: 0 | Z104: 0 | AB104: 0 | AD104: 0
A105: OPTICAL MODULE | B105: 10G SFP+, LR TYPE | D105: 8 | E105: 840000 | F105: 6720000 | H105: 0 | J105: 0 | K105: 840000 | L105: 6720000 | M105: 8 | N105: 840000 | O105: 6720000 | Q105: 0 | S105: 0 | T105: 840000 | U105: 6720000 | X105: 0 | Z105: 0 | AB105: 0 | AD105: 0
A106: OPTICAL PATCH CORD | B106: 3M, 1G | D106: 8 | E106: 21000 | F106: 168000 | H106: 0 | J106: 0 | K106: 21000 | L106: 168000 | M106: 8 | N106: 21000 | O106: 168000 | Q106: 0 | S106: 0 | T106: 21000 | U106: 168000 | X106: 0 | Z106: 0 | AB106: 0 | AD106: 0
A107: PATCH CORD | B107: 3M, CAT.6 | D107: 96 | E107: 9000 | F107: 864000 | H107: 0 | J107: 0 | K107: 9000 | L107: 864000 | M107: 96 | N107: 9000 | O107: 864000 | Q107: 0 | S107: 0 | T107: 9000 | U107: 864000 | X107: 0 | Z107: 0 | AB107: 0 | AD107: 0
A108: GIGABIT ETHERNET SWITCH | B108: 10/100/1000T 24PORT+4SFP+ | D108: 2 | E108: 2654500 | F108: 5309000 | H108: 0 | J108: 0 | K108: 2654500 | L108: 5309000 | M108: 1 | N108: 2654500 | O108: 2654500 | Q108: 0 | S108: 0 | T108: 2654500 | U108: 2654500 | X108: -2654500 | Z108: 0 | AB108: 0 | AD108: -2654500
A109: GIGABIT POE SWITCH | B109: 10/100/1000T 24PORT+4SFP, POE, GBIC포함 | D109: 2 | E109: 3508000 | F109: 7016000 | H109: 0 | J109: 0 | K109: 3508000 | L109: 7016000 | M109: 2 | N109: 3508000 | O109: 7016000 | Q109: 0 | S109: 0 | T109: 3508000 | U109: 7016000 | X109: 0 | Z109: 0 | AB109: 0 | AD109: 0
A110: OPTICAL MODULE | B110: 10G SFP+, LR TYPE | D110: 8 | E110: 840000 | F110: 6720000 | H110: 0 | J110: 0 | K110: 840000 | L110: 6720000 | M110: 6 | N110: 840000 | O110: 5040000 | Q110: 0 | S110: 0 | T110: 840000 | U110: 5040000 | X110: -1680000 | Z110: 0 | AB110: 0 | AD110: -1680000
A111: OPTICAL PATCH CORD | B111: 3M, 1G | D111: 8 | E111: 21000 | F111: 168000 | H111: 0 | J111: 0 | K111: 21000 | L111: 168000 | M111: 6 | N111: 21000 | O111: 126000 | Q111: 0 | S111: 0 | T111: 21000 | U111: 126000 | X111: -42000 | Z111: 0 | AB111: 0 | AD111: -42000
A112: PATCH CORD | B112: 3M, CAT.6 | D112: 96 | E112: 9000 | F112: 864000 | H112: 0 | J112: 0 | K112: 9000 | L112: 864000 | M112: 72 | N112: 9000 | O112: 648000 | Q112: 0 | S112: 0 | T112: 9000 | U112: 648000 | X112: -216000 | Z112: 0 | AB112: 0 | AD112: -216000
A113: GIGABIT ETHERNET SWITCH | B113: 10/100/1000T 24PORT+4SFP+ | D113: 1 | E113: 2654500 | F113: 2654500 | H113: 0 | J113: 0 | K113: 2654500 | L113: 2654500 | M113: 1 | N113: 2654500 | O113: 2654500 | Q113: 0 | S113: 0 | T113: 2654500 | U113: 2654500 | X113: 0 | Z113: 0 | AB113: 0 | AD113: 0
A114: GIGABIT POE SWITCH | B114: 10/100/1000T 24PORT+4SFP, POE, GBIC포함 | D114: 2 | E114: 3508000 | F114: 7016000 | H114: 0 | J114: 0 | K114: 3508000 | L114: 7016000 | M114: 2 | N114: 3508000 | O114: 7016000 | Q114: 0 | S114: 0 | T114: 3508000 | U114: 7016000 | X114: 0 | Z114: 0 | AB114: 0 | AD114: 0
A115: OPTICAL MODULE | B115: 10G SFP+, LR TYPE | D115: 6 | E115: 840000 | F115: 5040000 | H115: 0 | J115: 0 | K115: 840000 | L115: 5040000 | M115: 6 | N115: 840000 | O115: 5040000 | Q115: 0 | S115: 0 | T115: 840000 | U115: 5040000 | X115: 0 | Z115: 0 | AB115: 0 | AD115: 0
A116: OPTICAL PATCH CORD | B116: 3M, 1G | D116: 6 | E116: 21000 | F116: 126000 | H116: 0 | J116: 0 | K116: 21000 | L116: 126000 | M116: 6 | N116: 21000 | O116: 126000 | Q116: 0 | S116: 0 | T116: 21000 | U116: 126000 | X116: 0 | Z116: 0 | AB116: 0 | AD116: 0
A117: PATCH CORD | B117: 3M, CAT.6 | D117: 72 | E117: 9000 | F117: 648000 | H117: 0 | J117: 0 | K117: 9000 | L117: 648000 | M117: 72 | N117: 9000 | O117: 648000 | Q117: 0 | S117: 0 | T117: 9000 | U117: 648000 | X117: 0 | Z117: 0 | AB117: 0 | AD117: 0
A118: GIGABIT ETHERNET SWITCH | B118: 10/100/1000T 24PORT+4SFP+ | D118: 3 | E118: 2654500 | F118: 7963500 | H118: 0 | J118: 0 | K118: 2654500 | L118: 7963500 | M118: 2 | N118: 2654500 | O118: 5309000 | Q118: 0 | S118: 0 | T118: 2654500 | U118: 5309000 | X118: -2654500 | Z118: 0 | AB118: 0 | AD118: -2654500
A119: GIGABIT POE SWITCH | B119: 10/100/1000T 24PORT+4SFP, POE, GBIC포함 | D119: 2 | E119: 3508000 | F119: 7016000 | H119: 0 | J119: 0 | K119: 3508000 | L119: 7016000 | M119: 2 | N119: 3508000 | O119: 7016000 | Q119: 0 | S119: 0 | T119: 3508000 | U119: 7016000 | X119: 0 | Z119: 0 | AB119: 0 | AD119: 0
A120: OPTICAL MODULE | B120: 10G SFP+, LR TYPE | D120: 10 | E120: 840000 | F120: 8400000 | H120: 0 | J120: 0 | K120: 840000 | L120: 8400000 | M120: 8 | N120: 840000 | O120: 6720000 | Q120: 0 | S120: 0 | T120: 840000 | U120: 6720000 | X120: -1680000 | Z120: 0 | AB120: 0 | AD120: -1680000
A121: OPTICAL PATCH CORD | B121: 3M, 1G | D121: 10 | E121: 21000 | F121: 210000 | H121: 0 | J121: 0 | K121: 21000 | L121: 210000 | M121: 8 | N121: 21000 | O121: 168000 | Q121: 0 | S121: 0 | T121: 21000 | U121: 168000 | X121: -42000 | Z121: 0 | AB121: 0 | AD121: -42000
A122: PATCH CORD | B122: 3M, CAT.6 | D122: 120 | E122: 9000 | F122: 1080000 | H122: 0 | J122: 0 | K122: 9000 | L122: 1080000 | M122: 96 | N122: 9000 | O122: 864000 | Q122: 0 | S122: 0 | T122: 9000 | U122: 864000 | X122: -216000 | Z122: 0 | AB122: 0 | AD122: -216000
A123: GIGABIT ETHERNET SWITCH | B123: 10/100/1000T 24PORT+4SFP+ | D123: 6 | E123: 2654500 | F123: 15927000 | H123: 0 | J123: 0 | K123: 2654500 | L123: 15927000 | M123: 6 | N123: 2654500 | O123: 15927000 | Q123: 0 | S123: 0 | T123: 2654500 | U123: 15927000 | X123: 0 | Z123: 0 | AB123: 0 | AD123: 0
A124: GIGABIT POE SWITCH | B124: 10/100/1000T 24PORT+4SFP, POE, GBIC포함 | D124: 3 | E124: 3508000 | F124: 10524000 | H124: 0 | J124: 0 | K124: 3508000 | L124: 10524000 | M124: 3 | N124: 3508000 | O124: 10524000 | Q124: 0 | S124: 0 | T124: 3508000 | U124: 10524000 | X124: 0 | Z124: 0 | AB124: 0 | AD124: 0
A125: OPTICAL MODULE | B125: 10G SFP+, LR TYPE | D125: 18 | E125: 840000 | F125: 15120000 | H125: 0 | J125: 0 | K125: 840000 | L125: 15120000 | M125: 18 | N125: 840000 | O125: 15120000 | Q125: 0 | S125: 0 | T125: 840000 | U125: 15120000 | X125: 0 | Z125: 0 | AB125: 0 | AD125: 0
A126: OPTICAL PATCH CORD | B126: 3M, 1G | D126: 18 | E126: 21000 | F126: 378000 | H126: 0 | J126: 0 | K126: 21000 | L126: 378000 | M126: 18 | N126: 21000 | O126: 378000 | Q126: 0 | S126: 0 | T126: 21000 | U126: 378000 | X126: 0 | Z126: 0 | AB126: 0 | AD126: 0
A127: PATCH CORD | B127: 3M, CAT.6 | D127: 216 | E127: 9000 | F127: 1944000 | H127: 0 | J127: 0 | K127: 9000 | L127: 1944000 | M127: 216 | N127: 9000 | O127: 1944000 | Q127: 0 | S127: 0 | T127: 9000 | U127: 1944000 | X127: 0 | Z127: 0 | AB127: 0 | AD127: 0
A128: GIGABIT ETHERNET SWITCH | B128: 10/100/1000T 24PORT+4SFP+ | D128: 9 | E128: 2654500 | F128: 23890500 | H128: 0 | J128: 0 | K128: 2654500 | L128: 23890500 | M128: 12 | N128: 2654500 | O128: 31854000 | Q128: 0 | S128: 0 | T128: 2654500 | U128: 31854000 | X128: 7963500 | Z128: 0 | AB128: 0 | AD128: 7963500
A129: GIGABIT POE SWITCH | B129: 10/100/1000T 24PORT+4SFP, POE, GBIC포함 | D129: 4 | E129: 3508000 | F129: 14032000 | H129: 0 | J129: 0 | K129: 3508000 | L129: 14032000 | M129: 5 | N129: 3508000 | O129: 17540000 | Q129: 0 | S129: 0 | T129: 3508000 | U129: 17540000 | X129: 3508000 | Z129: 0 | AB129: 0 | AD129: 3508000
A130: OPTICAL MODULE | B130: 10G SFP+, LR TYPE | D130: 26 | E130: 840000 | F130: 21840000 | H130: 0 | J130: 0 | K130: 840000 | L130: 21840000 | M130: 34 | N130: 840000 | O130: 28560000 | Q130: 0 | S130: 0 | T130: 840000 | U130: 28560000 | X130: 6720000 | Z130: 0 | AB130: 0 | AD130: 6720000
A131: OPTICAL PATCH CORD | B131: 3M, 1G | D131: 26 | E131: 21000 | F131: 546000 | H131: 0 | J131: 0 | K131: 21000 | L131: 546000 | M131: 34 | N131: 21000 | O131: 714000 | Q131: 0 | S131: 0 | T131: 21000 | U131: 714000 | X131: 168000 | Z131: 0 | AB131: 0 | AD131: 168000
A132: PATCH CORD | B132: 3M, CAT.6 | D132: 312 | E132: 9000 | F132: 2808000 | H132: 0 | J132: 0 | K132: 9000 | L132: 2808000 | M132: 408 | N132: 9000 | O132: 3672000 | Q132: 0 | S132: 0 | T132: 9000 | U132: 3672000 | X132: 864000 | Z132: 0 | AB132: 0 | AD132: 864000
A133: GIGABIT ETHERNET SWITCH | B133: 10/100/1000T 24PORT+4SFP+ | D133: 18 | E133: 2654500 | F133: 47781000 | H133: 0 | J133: 0 | K133: 2654500 | L133: 47781000 | M133: 18 | N133: 2654500 | O133: 47781000 | Q133: 0 | S133: 0 | T133: 2654500 | U133: 47781000 | X133: 0 | Z133: 0 | AB133: 0 | AD133: 0
A134: GIGABIT POE SWITCH | B134: 10/100/1000T 24PORT+4SFP, POE, GBIC포함 | D134: 7 | E134: 3508000 | F134: 24556000 | H134: 0 | J134: 0 | K134: 3508000 | L134: 24556000 | M134: 7 | N134: 3508000 | O134: 24556000 | Q134: 0 | S134: 0 | T134: 3508000 | U134: 24556000 | X134: 0 | Z134: 0 | AB134: 0 | AD134: 0
A135: OPTICAL MODULE | B135: 10G SFP+, LR TYPE | D135: 50 | E135: 840000 | F135: 42000000 | H135: 0 | J135: 0 | K135: 840000 | L135: 42000000 | M135: 50 | N135: 840000 | O135: 42000000 | Q135: 0 | S135: 0 | T135: 840000 | U135: 42000000 | X135: 0 | Z135: 0 | AB135: 0 | AD135: 0
A136: OPTICAL PATCH CORD | B136: 3M, 1G | D136: 50 | E136: 21000 | F136: 1050000 | H136: 0 | J136: 0 | K136: 21000 | L136: 1050000 | M136: 50 | N136: 21000 | O136: 1050000 | Q136: 0 | S136: 0 | T136: 21000 | U136: 1050000 | X136: 0 | Z136: 0 | AB136: 0 | AD136: 0
A137: PATCH CORD | B137: 3M, CAT.6 | D137: 600 | E137: 9000 | F137: 5400000 | H137: 0 | J137: 0 | K137: 9000 | L137: 5400000 | M137: 600 | N137: 9000 | O137: 5400000 | Q137: 0 | S137: 0 | T137: 9000 | U137: 5400000 | X137: 0 | Z137: 0 | AB137: 0 | AD137: 0
A138: GIGABIT ETHERNET SWITCH | B138: 10/100/1000T 24PORT+4SFP+ | D138: 12 | E138: 2654500 | F138: =D138*E138 -> 31854000 | H138: =D138*G138 -> 0 | J138: =D138*I138 -> 0 | K138: =E138+G138+I138 -> 2654500 | L138: 31854000 | M138: 15 | N138: 2654500 | O138: =M138*N138 -> 39817500 | Q138: =M138*P138 -> 0 | S138: =M138*R138 -> 0 | T138: =N138+P138+R138 -> 2654500 | U138: 39817500 | X138: =O138-F138 -> 7963500 | Z138: =Q138-H138 -> 0 | AB138: =S138-J138 -> 0 | AD138: =X138+Z138+AB138 -> 7963500
A139: GIGABIT POE SWITCH | B139: 10/100/1000T 24PORT+4SFP, POE, GBIC포함 | D139: 5 | E139: 3508000 | F139: 17540000 | H139: 0 | J139: 0 | K139: 3508000 | L139: 17540000 | M139: 6 | N139: 3508000 | O139: 21048000 | Q139: 0 | S139: 0 | T139: 3508000 | U139: 21048000 | X139: 3508000 | Z139: 0 | AB139: 0 | AD139: 3508000
A140: OPTICAL MODULE | B140: 10G SFP+, LR TYPE | D140: 34 | E140: 840000 | F140: 28560000 | H140: 0 | J140: 0 | K140: 840000 | L140: 28560000 | M140: 42 | N140: 840000 | O140: 35280000 | Q140: 0 | S140: 0 | T140: 840000 | U140: 35280000 | X140: 6720000 | Z140: 0 | AB140: 0 | AD140: 6720000
A141: OPTICAL PATCH CORD | B141: 3M, 1G | D141: 34 | E141: 21000 | F141: 714000 | H141: 0 | J141: 0 | K141: 21000 | L141: 714000 | M141: 42 | N141: 21000 | O141: 882000 | Q141: 0 | S141: 0 | T141: 21000 | U141: 882000 | X141: 168000 | Z141: 0 | AB141: 0 | AD141: 168000
A142: PATCH CORD | B142: 3M, CAT.6 | D142: 408 | E142: 9000 | F142: 3672000 | H142: 0 | J142: 0 | K142: 9000 | L142: 3672000 | M142: 504 | N142: 9000 | O142: 4536000 | Q142: 0 | S142: 0 | T142: 9000 | U142: 4536000 | X142: 864000 | Z142: 0 | AB142: 0 | AD142: 864000
A143: GIGABIT ETHERNET SWITCH | B143: 10/100/1000T 24PORT+4SFP+ | D143: 19 | E143: 2654500 | F143: 50435500 | H143: 0 | J143: 0 | K143: 2654500 | L143: 50435500 | M143: 19 | N143: 2654500 | O143: 50435500 | Q143: 0 | S143: 0 | T143: 2654500 | U143: 50435500 | X143: 0 | Z143: 0 | AB143: 0 | AD143: 0
A144: GIGABIT POE SWITCH | B144: 10/100/1000T 24PORT+4SFP, POE, GBIC포함 | D144: 8 | E144: 3508000 | F144: 28064000 | H144: 0 | J144: 0 | K144: 3508000 | L144: 28064000 | M144: 8 | N144: 3508000 | O144: 28064000 | Q144: 0 | S144: 0 | T144: 3508000 | U144: 28064000 | X144: 0 | Z144: 0 | AB144: 0 | AD144: 0
A145: OPTICAL MODULE | B145: 10G SFP+, LR TYPE | D145: 54 | E145: 840000 | F145: 45360000 | H145: 0 | J145: 0 | K145: 840000 | L145: 45360000 | M145: 54 | N145: 840000 | O145: 45360000 | Q145: 0 | S145: 0 | T145: 840000 | U145: 45360000 | X145: 0 | Z145: 0 | AB145: 0 | AD145: 0
A146: OPTICAL PATCH CORD | B146: 3M, 1G | D146: 54 | E146: 21000 | F146: 1134000 | H146: 0 | J146: 0 | K146: 21000 | L146: 1134000 | M146: 54 | N146: 21000 | O146: 1134000 | Q146: 0 | S146: 0 | T146: 21000 | U146: 1134000 | X146: 0 | Z146: 0 | AB146: 0 | AD146: 0
A147: PATCH CORD | B147: 3M, CAT.6 | D147: 648 | E147: 9000 | F147: 5832000 | H147: 0 | J147: 0 | K147: 9000 | L147: 5832000 | M147: 648 | N147: 9000 | O147: 5832000 | Q147: 0 | S147: 0 | T147: 9000 | U147: 5832000 | X147: 0 | Z147: 0 | AB147: 0 | AD147: 0
A148: GIGABIT ETHERNET SWITCH | B148: 10/100/1000T 24PORT+4SFP+ | D148: 2 | E148: 2654500 | F148: 5309000 | H148: 0 | J148: 0 | K148: 2654500 | L148: 5309000 | M148: 3 | N148: 2654500 | O148: 7963500 | Q148: 0 | S148: 0 | T148: 2654500 | U148: 7963500 | X148: 2654500 | Z148: 0 | AB148: 0 | AD148: 2654500
A149: GIGABIT POE SWITCH | B149: 10/100/1000T 24PORT+4SFP, POE, GBIC포함 | D149: 1 | E149: 3508000 | F149: 3508000 | H149: 0 | J149: 0 | K149: 3508000 | L149: 3508000 | M149: 1 | N149: 3508000 | O149: 3508000 | Q149: 0 | S149: 0 | T149: 3508000 | U149: 3508000 | X149: 0 | Z149: 0 | AB149: 0 | AD149: 0
A150: OPTICAL MODULE | B150: 10G SFP+, LR TYPE | D150: 6 | E150: 840000 | F150: 5040000 | H150: 0 | J150: 0 | K150: 840000 | L150: 5040000 | M150: 8 | N150: 840000 | O150: 6720000 | Q150: 0 | S150: 0 | T150: 840000 | U150: 6720000 | X150: 1680000 | Z150: 0 | AB150: 0 | AD150: 1680000
A151: OPTICAL PATCH CORD | B151: 3M, 1G | D151: 6 | E151: 21000 | F151: 126000 | H151: 0 | J151: 0 | K151: 21000 | L151: 126000 | M151: 8 | N151: 21000 | O151: 168000 | Q151: 0 | S151: 0 | T151: 21000 | U151: 168000 | X151: 42000 | Z151: 0 | AB151: 0 | AD151: 42000
A152: PATCH CORD | B152: 3M, CAT.6 | D152: 72 | E152: 9000 | F152: 648000 | H152: 0 | J152: 0 | K152: 9000 | L152: 648000 | M152: 96 | N152: 9000 | O152: 864000 | Q152: 0 | S152: 0 | T152: 9000 | U152: 864000 | X152: 216000 | Z152: 0 | AB152: 0 | AD152: 216000
A153: GIGABIT ETHERNET SWITCH | B153: 10/100/1000T 24PORT+4SFP+ | D153: 1 | E153: 2654500 | F153: 2654500 | H153: 0 | J153: 0 | K153: 2654500 | L153: 2654500 | N153: 2654500 | O153: 0 | Q153: 0 | S153: 0 | T153: 2654500 | U153: 0 | X153: -2654500 | Z153: 0 | AB153: 0 | AD153: -2654500
A154: GIGABIT POE SWITCH | B154: 10/100/1000T 24PORT+4SFP, POE, GBIC포함 | E154: 2654500 | F154: 0 | H154: 0 | J154: 0 | K154: 2654500 | L154: 0 | M154: 1 | N154: 2654500 | O154: 2654500 | Q154: 0 | S154: 0 | T154: 2654500 | U154: 2654500 | X154: 2654500 | Z154: 0 | AB154: 0 | AD154: 2654500
A155: OPTICAL MODULE | B155: 10G SFP+, LR TYPE | D155: 2 | E155: 840000 | F155: 1680000 | H155: 0 | J155: 0 | K155: 840000 | L155: 1680000 | M155: 2 | N155: 840000 | O155: 1680000 | Q155: 0 | S155: 0 | T155: 840000 | U155: 1680000 | X155: 0 | Z155: 0 | AB155: 0 | AD155: 0
A156: OPTICAL PATCH CORD | B156: 3M, 1G | D156: 2 | E156: 21000 | F156: 42000 | H156: 0 | J156: 0 | K156: 21000 | L156: 42000 | M156: 2 | N156: 21000 | O156: 42000 | Q156: 0 | S156: 0 | T156: 21000 | U156: 42000 | X156: 0 | Z156: 0 | AB156: 0 | AD156: 0
A157: GIGABIT POE SWITCH | B157: 10/100/1000T 24PORT+4SFP, POE, GBIC포함 | D157: 1 | E157: 3508000 | F157: 3508000 | H157: 0 | J157: 0 | K157: 3508000 | L157: 3508000 | M157: 2 | N157: 3508000 | O157: 7016000 | Q157: 0 | S157: 0 | T157: 3508000 | U157: 7016000 | X157: 3508000 | Z157: 0 | AB157: 0 | AD157: 3508000
A158: OPTICAL MODULE | B158: 10G SFP+, LR TYPE | D158: 2 | E158: 840000 | F158: 1680000 | H158: 0 | J158: 0 | K158: 840000 | L158: 1680000 | M158: 4 | N158: 840000 | O158: 3360000 | Q158: 0 | S158: 0 | T158: 840000 | U158: 3360000 | X158: 1680000 | Z158: 0 | AB158: 0 | AD158: 1680000
A159: OPTICAL PATCH CORD | B159: 3M, 1G | D159: 1 | E159: 21000 | F159: 21000 | H159: 0 | J159: 0 | K159: 21000 | L159: 21000 | M159: 4 | N159: 21000 | O159: 84000 | Q159: 0 | S159: 0 | T159: 21000 | U159: 84000 | X159: 63000 | Z159: 0 | AB159: 0 | AD159: 63000
A160: PATCH CORD | B160: 3M, CAT.6 | D160: 24 | E160: 9000 | F160: 216000 | H160: 0 | J160: 0 | K160: 9000 | L160: 216000 | M160: 48 | N160: 9000 | O160: 432000 | Q160: 0 | S160: 0 | T160: 9000 | U160: 432000 | X160: 216000 | Z160: 0 | AB160: 0 | AD160: 216000
A161: GIGABIT ETHERNET SWITCH | B161: 10/100/1000T 24PORT+4SFP+ | D161: 0 | E161: 2654500 | F161: 0 | H161: 0 | J161: 0 | K161: 2654500 | L161: 0 | M161: 1 | N161: 2654500 | O161: 2654500 | Q161: 0 | S161: 0 | T161: 2654500 | U161: 2654500 | X161: 2654500 | Z161: 0 | AB161: 0 | AD161: 2654500
A162: OPTICAL MODULE | B162: 10G SFP+, LR TYPE | D162: 0 | E162: 840000 | F162: 0 | H162: 0 | J162: 0 | K162: 840000 | L162: 0 | M162: 2 | N162: 840000 | O162: 1680000 | Q162: 0 | S162: 0 | T162: 840000 | U162: 1680000 | X162: 1680000 | Z162: 0 | AB162: 0 | AD162: 1680000
A163: OPTICAL PATCH CORD | B163: 3M, 1G | D163: 0 | E163: 21000 | F163: 0 | H163: 0 | J163: 0 | K163: 21000 | L163: 0 | M163: 2 | N163: 21000 | O163: 42000 | Q163: 0 | S163: 0 | T163: 21000 | U163: 42000 | X163: 42000 | Z163: 0 | AB163: 0 | AD163: 42000
A164: PATCH CORD | B164: 3M, CAT.6 | D164: 0 | E164: 9000 | F164: 0 | H164: 0 | J164: 0 | K164: 9000 | L164: 0 | M164: 24 | N164: 9000 | O164: 216000 | Q164: 0 | S164: 0 | T164: 9000 | U164: 216000 | X164: 216000 | Z164: 0 | AB164: 0 | AD164: 216000
A165: Call Server | B165: SCM Express 에디션 | D165: 2 | E165: 14000000 | F165: 28000000 | H165: 0 | J165: 0 | K165: 14000000 | L165: 28000000 | M165: 2 | N165: 14000000 | O165: 28000000 | Q165: 0 | S165: 0 | T165: 14000000 | U165: 28000000 | X165: 0 | Z165: 0 | AB165: 0 | AD165: 0
A166: License | B166: IP전화기 라이선스 | D166: 200 | E166: 140000 | F166: 28000000 | H166: 0 | J166: 0 | K166: 140000 | L166: 28000000 | M166: 200 | N166: 140000 | O166: 28000000 | Q166: 0 | S166: 0 | T166: 140000 | U166: 28000000 | X166: 0 | Z166: 0 | AB166: 0 | AD166: 0
A167: Midea Gateway | D167: 2 | F167: 0 | H167: 0 | J167: 0 | K167: 0 | L167: 0 | M167: 2 | O167: 0 | Q167: 0 | S167: 0 | T167: 0 | U167: 0 | X167: 0 | Z167: 0 | AB167: 0 | AD167: 0
A168: - IPX-G500BP | B168: Gateway Main Cabinet | D168: 2 | E168: 4000000 | F168: 8000000 | H168: 0 | J168: 0 | K168: 4000000 | L168: 8000000 | M168: 2 | N168: 4000000 | O168: 8000000 | Q168: 0 | S168: 0 | T168: 4000000 | U168: 8000000 | X168: 0 | Z168: 0 | AB168: 0 | AD168: 0
A169: - IPX-MPR12P | B169: ISDN, 2-PRI, Option Module | D169: 1 | E169: 3000000 | F169: 3000000 | H169: 0 | J169: 0 | K169: 3000000 | L169: 3000000 | M169: 1 | N169: 3000000 | O169: 3000000 | Q169: 0 | S169: 0 | T169: 3000000 | U169: 3000000 | X169: 0 | Z169: 0 | AB169: 0 | AD169: 0
A170: - IPX-MFX04P | B170: FXO 4 Port, Option Module | D170: 4 | E170: 400000 | F170: 1600000 | H170: 0 | J170: 0 | K170: 400000 | L170: 1600000 | M170: 4 | N170: 400000 | O170: 1600000 | Q170: 0 | S170: 0 | T170: 400000 | U170: 1600000 | X170: 0 | Z170: 0 | AB170: 0 | AD170: 0
A171: - IPX-G540S | B171: FXS 40 Port, Single Power | D171: 1 | E171: 5600000 | F171: 5600000 | H171: 0 | J171: 0 | K171: 5600000 | L171: 5600000 | M171: 1 | N171: 5600000 | O171: 5600000 | Q171: 0 | S171: 0 | T171: 5600000 | U171: 5600000 | X171: 0 | Z171: 0 | AB171: 0 | AD171: 0
A172: 유지보수 시스템 | B172: PC H/W, O/S, 모니터, S/W 포함 | D172: 1 | E172: 2600000 | F172: 2600000 | H172: 0 | J172: 0 | K172: 2600000 | L172: 2600000 | M172: 1 | N172: 2600000 | O172: 2600000 | Q172: 0 | S172: 0 | T172: 2600000 | U172: 2600000 | X172: 0 | Z172: 0 | AB172: 0 | AD172: 0
A173: 인증서 | B173: 콜서버 기기인증서(5년) | D173: 2 | E173: 1000000 | F173: 2000000 | H173: 0 | J173: 0 | K173: 1000000 | L173: 2000000 | M173: 2 | N173: 1000000 | O173: 2000000 | Q173: 0 | S173: 0 | T173: 1000000 | U173: 2000000 | X173: 0 | Z173: 0 | AB173: 0 | AD173: 0
A174: 인증서 | B174: IP 전화기 암호화 기기인증서 (5 | D174: 150 | E174: 2000 | F174: 300000 | H174: 0 | J174: 0 | K174: 2000 | L174: 300000 | M174: 150 | N174: 2000 | O174: 300000 | Q174: 0 | S174: 0 | T174: 2000 | U174: 300000 | X174: 0 | Z174: 0 | AB174: 0 | AD174: 0
A175: IP전화기(간부용) | B175: 컬러 TFT LCD(480x272) | D175: 5 | E175: 1000000 | F175: 5000000 | H175: 0 | J175: 0 | K175: 1000000 | L175: 5000000 | M175: 5 | N175: 1000000 | O175: 5000000 | Q175: 0 | S175: 0 | T175: 1000000 | U175: 5000000 | X175: 0 | Z175: 0 | AB175: 0 | AD175: 0
A176: IP전화기(직원용) | B176: 5Line LCD(384x160), 1GE | D176: 45 | E176: 700000 | F176: 31500000 | H176: 0 | J176: 0 | K176: 700000 | L176: 31500000 | M176: 45 | N176: 700000 | O176: 31500000 | Q176: 0 | S176: 0 | T176: 700000 | U176: 31500000 | X176: 0 | Z176: 0 | AB176: 0 | AD176: 0
A177: IP전화기(일반용) | B177: 4Line LCD, 1GE, 10 DSS Keys | D177: 100 | E177: 340000 | F177: 34000000 | H177: 0 | J177: 0 | K177: 340000 | L177: 34000000 | M177: 100 | N177: 340000 | O177: 34000000 | Q177: 0 | S177: 0 | T177: 340000 | U177: 34000000 | X177: 0 | Z177: 0 | AB177: 0 | AD177: 0
A178: 과금시스템 | B178: PC H/W, O/S, 모니터, S/W 포함 | D178: 1 | E178: 7500000 | F178: 7500000 | H178: 0 | J178: 0 | K178: 7500000 | L178: 7500000 | M178: 1 | N178: 7500000 | O178: 7500000 | Q178: 0 | S178: 0 | T178: 7500000 | U178: 7500000 | X178: 0 | Z178: 0 | AB178: 0 | AD178: 0
A180: GIGABIT ETHERNET SWITCH | B180: 10/100/1000T 24PORT+4SFP+ | F180: =D180*E180 -> 0 | H180: =D180*G180 -> 0 | J180: =D180*I180 -> 0 | K180: =E180+G180+I180 -> 0 | L180: 0 | M180: 1 | N180: 2654500 | O180: =M180*N180 -> 2654500 | Q180: =M180*P180 -> 0 | S180: =M180*R180 -> 0 | T180: =N180+P180+R180 -> 2654500 | U180: 2654500 | X180: =O180-F180 -> 2654500 | Z180: =Q180-H180 -> 0 | AB180: =S180-J180 -> 0 | AD180: =X180+Z180+AB180 -> 2654500
A181: OPTICAL MODULE | B181: 10G SFP+, LR TYPE | F181: =D181*E181 -> 0 | H181: =D181*G181 -> 0 | J181: =D181*I181 -> 0 | K181: 0 | L181: 0 | M181: 2 | N181: 840000 | O181: =M181*N181 -> 1680000 | Q181: =M181*P181 -> 0 | S181: =M181*R181 -> 0 | T181: 840000 | U181: 1680000 | X181: =O181-F181 -> 1680000 | Z181: =Q181-H181 -> 0 | AB181: =S181-J181 -> 0 | AD181: =X181+Z181+AB181 -> 1680000
A182: OPTICAL PATCH CORD | B182: 3M, 1G | F182: =D182*E182 -> 0 | H182: =D182*G182 -> 0 | J182: =D182*I182 -> 0 | K182: 0 | L182: 0 | M182: 2 | N182: 21000 | O182: =M182*N182 -> 42000 | Q182: =M182*P182 -> 0 | S182: =M182*R182 -> 0 | T182: 21000 | U182: 42000 | X182: =O182-F182 -> 42000 | Z182: =Q182-H182 -> 0 | AB182: =S182-J182 -> 0 | AD182: =X182+Z182+AB182 -> 42000
A183: PATCH CORD | B183: 3M, CAT.6 | F183: =D183*E183 -> 0 | H183: =D183*G183 -> 0 | J183: =D183*I183 -> 0 | K183: 0 | L183: 0 | M183: 24 | N183: 9000 | O183: =M183*N183 -> 216000 | Q183: =M183*P183 -> 0 | S183: =M183*R183 -> 0 | T183: 9000 | U183: 216000 | X183: =O183-F183 -> 216000 | Z183: =Q183-H183 -> 0 | AB183: =S183-J183 -> 0 | AD183: =X183+Z183+AB183 -> 216000
F184: 0 | H184: 0 | J184: 0 | K184: 0 | L184: 0 | O184: 0 | Q184: 0 | S184: 0 | T184: 0 | U184: 0 | X184: 0 | Z184: 0 | AB184: 0 | AD184: 0
A185: 통신관련산업기사 | D185: 17.97 | F185: 0 | G185: 250535 | H185: =TRUNC(D185*G185,) -> 4502113 | J185: 0 | K185: 250535 | L185: 4502113 | M185: =16.48+1 -> 17.48 | O185: 0 | P185: 252472 | Q185: =TRUNC(M185*P185,) -> 4413210 | S185: 0 | T185: 252472 | U185: 4413210 | X185: 0 | Z185: -88903 | AB185: 0 | AD185: -88903
A186: 통신설비공 | D186: 209.96 | F186: 0 | G186: 233636 | H186: 49054214 | J186: 0 | K186: 233636 | L186: 49054214 | M186: =214.36+1 -> 215.36 | O186: 0 | P186: 245030 | Q186: 52769660 | S186: 0 | T186: 245030 | U186: 52769660 | X186: 0 | Z186: 3715446 | AB186: 0 | AD186: 3715446
A187: 보통인부 | D187: 396.78 | F187: 0 | G187: 130264 | H187: 51686149 | J187: 0 | K187: 130264 | L187: 51686149 | M187: =408.93+1 -> 409.93 | O187: 0 | P187: 138290 | Q187: 56689219 | S187: 0 | T187: 138290 | U187: 56689219 | X187: 0 | Z187: 5003070 | AB187: 0 | AD187: 5003070
A188: S/W시험사 | D188: 153.99 | F188: 0 | G188: 335062 | H188: 51596197 | J188: 0 | K188: 335062 | L188: 51596197 | M188: =183.77+1 -> 184.77 | O188: 0 | P188: 344600 | Q188: 63671742 | S188: 0 | T188: 344600 | U188: 63671742 | X188: 0 | Z188: 12075545 | AB188: 0 | AD188: 12075545
A189: H/W시험사 | D189: 144.38 | F189: 0 | G189: 316006 | H189: 45624946 | J189: 0 | K189: 316006 | L189: 45624946 | M189: =169.16+1 -> 170.16 | O189: 0 | P189: 322434 | Q189: 54865369 | S189: 0 | T189: 322434 | U189: 54865369 | X189: 0 | Z189: 9240423 | AB189: 0 | AD189: 9240423
A190: 통신케이블공 | D190: 204.17 | F190: 0 | G190: 326966 | H190: 66756648 | J190: 0 | K190: 326966 | L190: 66756648 | M190: =211.98+1 -> 212.98 | O190: 0 | P190: 332485 | Q190: 70812655 | S190: 0 | T190: 332485 | U190: 70812655 | X190: 0 | Z190: 4056007 | AB190: 0 | AD190: 4056007
F191: =TRUNC(E191*D191, 0) -> 0 | H191: =TRUNC(G191*D191, 0) -> 0 | J191: =D191*I191 -> 0 | K191: =E191+G191+I191 -> 0 | L191: =F191+H191+J191 -> 0 | S191: =R191 -> 0 | T191: =N191+P191+R191 -> 0 | U191: =O191+Q191+S191 -> 0 | W191: =E191 -> 0 | X191: =TRUNC(W191*V191, 0) -> 0 | Z191: =TRUNC(Y191*V191, 0) -> 0 | AB191: =S191-J191 -> 0 | AD191: =X191+Z191+AB191 -> 0
B192: 소계 | F192: =SUM(F9:F191) -> 3177242100 | H192: =SUM(H9:H191) -> 269220267 | J192: =SUM(J9:J191) -> 0 | L192: =SUM(L9:L191) -> 3446462367 | O192: =SUM(O9:O191) -> 3205346060 | Q192: =SUM(Q9:Q191) -> 303221855 | S192: =SUM(S9:S191) -> 0 | U192: =SUM(U9:U191) -> 3508567915 | X192: =SUM(X9:X191) -> 28103960 | Z192: =SUM(Z9:Z191) -> 34001588 | AB192: =SUM(AB9:AB191) -> 0 | AD192: =SUM(AD9:AD191) -> 62105548

Sheet 상세 설계 내역서
C1: 공 사 설 계 내 역 서
A2: 사업명 : E-house 및 오뚜기국제관 무선 네트워크 고도화 사업
A3: 구 분 | B3: 건물명 | C3: 품 명 | D3: 규 격 | E3: 단위 | F3: 금회요청 | O3: 비 고
F4: 수량 | G4: 재료비 | I4: 노무비 | K4: 경비 | M4: 합계
G5: 단가 | H5: 금액 | I5: 단가 | J5: 금액 | K5: 단가 | L5: 금액 | M5: 단가 | N5: 금액
C6: 오뚜기 국제관
B7: 오뚜기관 | C7: 일반형 AP | D7: 802.11ax, 2.4/5/6Ghz 지원, 2x2:2SS, 장비 규격서 참조 | E7: EA | F7: 156
B8: 오뚜기관 | C8: 1G 24Port POE | D8: 1G 24Port Class4 POE, 전원 이중화, 장비 규격서 참조 | E8: EA | F8: 2
B9: 오뚜기관 | C9: 1G 48Port POE | D9: 1G 48Port Class4 POE, 전원 이중화, 장비 규격서 참조 | E9: EA | F9: 3
B10: 오뚜기관 | C10: 집선스위치 | D10: 10/25G 32Port, 장비 규격서 참조 | E10: EA | F10: 1
B11: 오뚜기관 | C11: 트랜시버 | D11: 10G-LR Transceiver | E11: EA | F11: 12
B12: 오뚜기관 | C12: AP 철거 및 고정 | D12: AP 철거 및 신규 AP 고정 | E12: M | F12: 156
B13: 오뚜기관 | C13: CAT.6 UTP Cable | D13: LS전선 CAT.6 UTP Cable, 황색 | E13: M | F13: 780
B14: 오뚜기관 | C14: RJ-45 | D14: CAT.6 RJ45 PLUG | E14: EA | F14: 200
B15: 오뚜기관 | C15: 16mm 주름관 | D15: 난연 주름관 16mm | E15: M | F15: 200
B16: 오뚜기관 | C16: 몰드 | D16: 사각몰드 | E16: EA | F16: 500
B17: 오뚜기관 | C17: 랙정리작업 | D17: 패치판넬 및 랙 공간 정리 | E17: M/D | F17: 4
C20: E-HOUSE
B21: E-HOUSE | C21: 일반형 AP | D21: 802.11ax, 2.4/5/6Ghz 지원, 2x2:2SS, 장비 규격서 참조 | E21: EA | F21: 910
B22: E-HOUSE | C22: 1G 24Port POE | D22: 1G 24Port Class4 POE, 전원 이중화, 장비 규격서 참조 | E22: EA | F22: 16
B23: E-HOUSE | C23: 1G 48Port POE | D23: 1G 48Port Class4 POE, 전원 이중화, 장비 규격서 참조 | E23: EA | F23: 16
B24: E-HOUSE | C24: 집선스위치 | D24: 10/25G 48Port, 장비 규격서 참조 | E24: EA | F24: 1
B25: E-HOUSE | C25: 트랜시버 | D25: 10G-LR Transceiver | E25: EA | F25: 66
B26: E-HOUSE | C26: AP 철거 및 고정 | D26: AP 철거 및 신규 AP 고정 | E26: M | F26: 910
B27: E-HOUSE | C27: CAT.6 UTP Cable | D27: LS전선 CAT.6 UTP Cable, 황색 | E27: M | F27: 4500
B28: E-HOUSE | C28: RJ-45 | D28: CAT.6 RJ45 PLUG | E28: EA | F28: 2000
B29: E-HOUSE | C29: 16mm 주름관 | D29: 난연 주름관 16mm | E29: M | F29: 1000
B30: E-HOUSE | C30: 몰드 | D30: 사각몰드 | E30: EA | F30: 480
B31: E-HOUSE | C31: 랙정리작업 | D31: 패치판넬 및 랙 공간 정리 | E31: M/D | F31: 20
C33: 전산실
B34: 전산실 | C34: 무선랜 컨트롤러 | D34: 1/10/24G 4Port, 2,048 AP 수용, 장비 규격서 참조 | E34: EA | F34: 1

Sheet 단가조사 (hidden)
A1: 관급자재(통합배선반) 단가조사 | N1: [단위 원/VAT별도]
A3: 구분 | C3: 품 명 | D3: 규 격 | E3: 수량 | F3: 견적가 A사 | H3: 견적가 B사 | J3: 견적가 C사 | L3: 물가자료 | N3: 비고
A4: 공종 | B4: 발주형태 | F4: 단가 | G4: 금액 | H4: 단가 | I4: 금액 | J4: 단가 | K4: 금액 | L4: 단가 | M4: 금액
G5: =(F5*E5) -> 0 | I5: =(H5*E5) -> 0 | K5: =(J5*E5) -> 0 | L5: 348 | M5: =(L5*E5) -> 0
G6: =(F6*E6) -> 0 | I6: =(H6*E6) -> 0 | K6: =(J6*E6) -> 0 | L6: 809 | M6: =(L6*E6) -> 0
G7: 0 | I7: 0 | K7: 0 | L7: 1086 | M7: 0
G8: 0 | I8: 0 | K8: 0 | L8: 820 | M8: 0
G9: 0 | I9: 0 | K9: 0 | L9: 1664 | M9: 0
G10: 0 | I10: 0 | K10: 0 | L10: 4837 | M10: 0
G11: =SUM(G5:G10) -> 0 | I11: =SUM(I5:I10) -> 0 | K11: =SUM(K5:K10) -> 0 | M11: =SUM(M5:M10) -> 0
G12: 0 | I12: 0 | K12: 0
G13: 0 | I13: 0 | K13: 0
G14: 0 | I14: 0 | K14: 0
G15: =TRUNC(G11*10%,) -> 0 | I15: =TRUNC(I11*10%,) -> 0 | K15: =TRUNC(K11*10%,) -> 0 | M15: =TRUNC(M11*10%,) -> 0
G16: =SUM(G11:G15) -> 0 | I16: =SUM(I11:I15) -> 0 | K16: =SUM(K11:K15) -> 0 | M16: =SUM(M11:M15) -> 0
G18: =G16+G17 -> 0 | I18: =I16+I17 -> 0 | K18: =K16+K17 -> 0 | M18: =M16+M17 -> 0
G19: =TRUNC(G18*0.54%,) -> 0 | I19: =TRUNC(I18*0.54%,) -> 0 | K19: =TRUNC(K18*0.54%,) -> 0 | M19: =TRUNC(M18*0.54%,) -> 0
